fUST/lending_fUST_20250906
["ID","MTS","AMOUNT","RATE_DAILY","PERIOD"]
[383849005,1757142651620,-480.0,0.00014246,2]
[383849007,1757142651630,-2781.26,0.00014246,2]
[383849009,1757142651639,-480.0,0.00014246,2]
[383849011,1757142651648,-480.0,0.00014246,2]
[383849013,1757142651658,-480.0,0.00014246,2]
[383849015,1757142651667,-769.96,0.00014246,2]
[383849017,1757142651678,-2083.88,0.00014246,2]
[383849019,1757142651688,-199.68259436,0.00014246,2]
[383849021,1757142651697,-480.0,0.00014246,2]
[383849023,1757142651705,-480.0,0.00014246,2]
[383849025,1757142651715,-480.0,0.00014246,2]
[383849027,1757142651724,-480.0,0.00014246,2]
[383849029,1757142651734,-480.0,0.00014246,2]
[383849031,1757142651743,-167.86,0.00014246,2]
[383849033,1757142651752,-2117.21,0.00014246,2]
[383849035,1757142651761,-480.0,0.00014246,2]
[383849037,1757142651770,-480.0,0.00014246,2]
[383849039,1757142651780,-585.4,0.00014246,2]
[383849041,1757142651790,-480.0,0.00014246,2]
[383849043,1757142651799,-480.0,0.00014246,2]
[383849045,1757142651808,-1521.68,0.00014246,2]
[383849047,1757142651817,-480.0,0.00014246,2]
[383849049,1757142651826,-480.0,0.00014246,2]
[383849051,1757142651835,-480.0,0.00014246,2]
[383849053,1757142651844,-1281.53,0.00014246,2]
[383849055,1757142651853,-327.6887114,0.00014246,2]
[383849057,1757142651862,-480.0,0.00014246,2]
[383849059,1757142651872,-480.0,0.00014246,2]
[383849061,1757142651882,-480.0,0.00014246,2]
[383849063,1757142651891,-647.27,0.00014246,2]
[383849065,1757142651900,-480.0,0.00014246,2]
[383849067,1757142651910,-2313.46,0.00014246,2]
[383849069,1757142651920,-804.65,0.00014246,2]
[383849071,1757142651930,-480.0,0.00014246,2]
[383849073,1757142651939,-2183.52,0.00014246,2]
[383849075,1757142651948,-480.0,0.00014246,2]
[383849077,1757142651957,-1035.15,0.00014246,2]
[383849079,1757142651967,-10292.41,0.00014246,2]
[383849081,1757142651976,-594.96,0.00014246,2]
[383849083,1757142651985,-480.0,0.00014246,2]
[383849085,1757142651994,-632.05,0.00014246,2]
[383849086,1757142652003,-1910.64,0.00014246,2]
[383849087,1757142652013,-480.0,0.00014246,2]
[383849088,1757142652023,-480.0,0.00014246,2]
[383849089,1757142652032,-480.0,0.00014246,2]
[383849090,1757142652042,-698.68,0.00014246,2]
[383849091,1757142652051,-480.0,0.00014246,2]
[383849092,1757142652060,-2487.1,0.00014246,2]
[383849093,1757142652070,-1264.94,0.00014246,2]
[383849094,1757142652079,-480.0,0.00014246,2]
[383849095,1757142652088,-806.18,0.00014246,2]
[383849096,1757142652097,-480.0,0.00014246,2]
[383849097,1757142652107,-480.0,0.00014246,2]
[383849098,1757142652117,-1046.26,0.00014246,2]
[383849099,1757142652126,-785.41,0.00014246,2]
[383849100,1757142652136,-1818.14,0.00014246,2]
[383849101,1757142652146,-702.79,0.00014246,2]
[383849102,1757142652155,-480.0,0.00014246,2]
[383849104,1757142652166,-1645.87,0.00014246,2]
[383849105,1757142652175,-480.0,0.00014246,2]
[383849107,1757142652184,-480.0,0.00014246,2]
[383849109,1757142652194,-480.0,0.00014246,2]
[383849111,1757142652203,-480.0,0.00014246,2]
[383849113,1757142652213,-3235.57,0.00014246,2]
[383849116,1757142652222,-151.0,0.00014246,2]
[383849117,1757142652231,-7057.39,0.00014246,2]
[383849119,1757142652240,-480.0,0.00014246,2]
[383849121,1757142652249,-151.0,0.00014246,2]
[383849123,1757142652259,-151.0,0.00014246,2]
[383849125,1757142652269,-613.06,0.00014246,2]
[383849127,1757142652277,-929.17,0.00014246,2]
[383849129,1757142652287,-674.92,0.00014246,2]
[383849131,1757142652296,-267.07002223,0.00014246,2]
[383849133,1757142652305,-151.0,0.00014246,2]
[383849135,1757142652314,-235.399766,0.00014246,2]
[383849137,1757142652323,-480.0,0.00014246,2]
[383849139,1757142652332,-480.0,0.00014246,2]
[383849141,1757142652341,-480.0,0.00014246,2]
[383849143,1757142652350,-1000.0,0.00014247,2]
[383849145,1757142652359,-1000.0,0.00014247,2]
[383849147,1757142652368,-168.0,0.00014279,2]
[383849149,1757142652377,-306.02809279,0.00014368,2]
[383849151,1757142652387,-501.49623136,0.00014368,2]
[383849153,1757142652396,-1500.0,0.00014368,2]
[383849155,1757142652406,-157.0,0.0001439,2]
[383849157,1757142652416,-652.0,0.0001439,2]
[383849159,1757142652425,-151.0,0.000144,2]
[383849161,1757142652434,-232.76153109,0.00014419,2]
[383849163,1757142652444,-157.0,0.00014419,2]
[383849165,1757142652453,-157.0,0.00014419,2]
[383849167,1757142652462,-12758.66890092,0.00014428,2]
[383849169,1757142652472,-2010.38847086,0.00014504,2]
[383849171,1757142652485,-480.0,0.0001452,2]
[383849173,1757142652494,-480.0,0.0001452,2]
[383849175,1757142652503,-480.0,0.0001452,2]
[383849177,1757142652512,-480.0,0.0001452,2]
[383849179,1757142652522,-519.17,0.0001452,2]
[383849181,1757142652532,-480.0,0.0001452,2]
[383849183,1757142652541,-480.0,0.0001452,2]
[383849185,1757142652551,-480.0,0.0001452,2]
[383849187,1757142652560,-151.0,0.0001452,2]
[383849189,1757142652570,-528.10910465,0.0001452,2]
[383849191,1757142652580,-480.0,0.0001452,2]
[383849194,1757142652589,-895.01,0.0001452,2]
[383849195,1757142652599,-480.0,0.0001452,2]
[383849198,1757142652609,-839.71,0.0001452,2]
[383849200,1757142652618,-480.0,0.0001452,2]
[383849201,1757142652628,-480.0,0.0001452,2]
[383849203,1757142652637,-480.0,0.0001452,2]
[383849206,1757142652646,-520.68,0.0001452,2]
[383849208,1757142652656,-480.0,0.0001452,2]
[383849210,1757142652665,-512.5,0.0001452,2]
[383849212,1757142652675,-480.0,0.0001452,2]
[383849213,1757142652685,-480.0,0.0001452,2]
[383849216,1757142652695,-623.24,0.0001452,2]
[383849218,1757142652704,-1342.59,0.0001452,2]
[383849219,1757142652714,-480.0,0.0001452,2]
[383849222,1757142652724,-480.0,0.0001452,2]
[383849224,1757142652734,-480.0,0.0001452,2]
[383849225,1757142652743,-480.0,0.0001452,2]
[383849228,1757142652754,-752.74,0.0001452,2]
[383849230,1757142652764,-480.0,0.0001452,2]
[383849232,1757142652773,-480.0,0.0001452,2]
[383849234,1757142652783,-638.26,0.0001452,2]
[383849236,1757142652792,-671.24,0.0001452,2]
[383849238,1757142652802,-480.0,0.0001452,2]
[383849239,1757142652811,-480.0,0.0001452,2]
[383849241,1757142652820,-598.24,0.0001452,2]
[383849243,1757142652829,-480.0,0.0001452,2]
[383849245,1757142652838,-480.0,0.0001452,2]
[383849248,1757142652848,-480.0,0.0001452,2]
[383849249,1757142652857,-472.7225255,0.0001452,2]
[383849252,1757142652868,-762.76,0.0001452,2]
[383849254,1757142652877,-480.0,0.0001452,2]
[383849256,1757142652886,-480.0,0.0001452,2]
[383849257,1757142652895,-982.6,0.0001452,2]
[383849260,1757142652905,-480.0,0.0001452,2]
[383849261,1757142652914,-567.57,0.0001452,2]
[383849264,1757142652924,-480.0,0.0001452,2]
[383849266,1757142652933,-480.0,0.0001452,2]
[383849267,1757142652946,-590.92,0.0001452,2]
[383849270,1757142652957,-480.0,0.0001452,2]
[383849271,1757142652966,-480.0,0.0001452,2]
[383849273,1757142652975,-480.0,0.0001452,2]
[383849284,1757142653073,-480.0,0.0001452,2]
[383849286,1757142653086,-912.66,0.0001452,2]
[383849288,1757142653096,-480.0,0.0001452,2]
[383849290,1757142653105,-480.0,0.0001452,2]
[383849292,1757142653115,-268.03493087,0.0001452,2]
[383849294,1757142653124,-480.0,0.0001452,2]
[383849296,1757142653134,-321.31924441,0.0001452,2]
[383849298,1757142653143,-480.0,0.0001452,2]
[383849300,1757142653153,-480.0,0.0001452,2]
[383849302,1757142653162,-551.94,0.0001452,2]
[383849304,1757142653172,-557.77,0.0001452,2]
[383849306,1757142653182,-480.0,0.0001452,2]
[383849308,1757142653192,-716.75,0.0001452,2]
[383849310,1757142653201,-480.0,0.0001452,2]
[383849312,1757142653211,-715.02,0.0001452,2]
[383849314,1757142653220,-480.0,0.0001452,2]
[383849316,1757142653231,-480.0,0.0001452,2]
[383849318,1757142653241,-822.2,0.0001452,2]
[383849320,1757142653250,-480.0,0.0001452,2]
[383849322,1757142653260,-557.01,0.0001452,2]
[383849324,1757142653269,-939.44,0.0001452,2]
[383849326,1757142653278,-4732.3,0.0001452,2]
[383849328,1757142653288,-480.0,0.0001452,2]
[383849330,1757142653298,-2481.31,0.0001452,2]
[383849332,1757142653308,-893.07,0.0001452,2]
[383849334,1757142653317,-480.0,0.0001452,2]
[383849336,1757142653327,-18925.75,0.0001452,2]
[383849338,1757142653337,-480.0,0.0001452,2]
[383849340,1757142653346,-480.0,0.0001452,2]
[383849342,1757142653355,-2154.88,0.0001452,2]
[383849344,1757142653365,-416.04,0.0001452,2]
[383849346,1757142653374,-2781.26,0.0001452,2]
[383849348,1757142653383,-597.51149267,0.0001452,2]
[383849350,1757142653392,-480.0,0.0001452,2]
[383849352,1757142653401,-480.0,0.0001452,2]
[383849354,1757142653411,-769.96,0.0001452,2]
[383849356,1757142653420,-2083.88,0.0001452,2]
[383849358,1757142653430,-600.26962971,0.0001452,2]
[383849360,1757142653439,-480.0,0.0001452,2]
[383849362,1757142653448,-480.0,0.0001452,2]
[383849364,1757142653458,-480.0,0.0001452,2]
[383849366,1757142653467,-480.0,0.0001452,2]
[383849368,1757142653478,-2117.21,0.0001452,2]
[383849370,1757142653488,-480.0,0.0001452,2]
[383849372,1757142653497,-480.0,0.0001452,2]
[383849374,1757142653507,-480.0,0.0001452,2]
[383849376,1757142653517,-585.4,0.0001452,2]
[383849378,1757142653526,-480.0,0.0001452,2]
[383849380,1757142653535,-1521.68,0.0001452,2]
[383849382,1757142653545,-480.0,0.0001452,2]
[383849384,1757142653554,-480.0,0.0001452,2]
[383849386,1757142653565,-395.79827353,0.0001452,2]
[383849388,1757142653574,-1281.53,0.0001452,2]
[383849390,1757142653583,-480.0,0.0001452,2]
[383849392,1757142653592,-480.0,0.0001452,2]
[383849394,1757142653602,-480.0,0.0001452,2]
[383849396,1757142653611,-647.27,0.0001452,2]
[383849398,1757142653620,-480.0,0.0001452,2]
[383849400,1757142653630,-2313.46,0.0001452,2]
[383849402,1757142653639,-804.65,0.0001452,2]
[383849404,1757142653649,-480.0,0.0001452,2]
[383849406,1757142653659,-2183.52,0.0001452,2]
[383849408,1757142653668,-480.0,0.0001452,2]
[383849410,1757142653677,-1035.15,0.0001452,2]
[383849412,1757142653686,-10292.41,0.0001452,2]
[383849414,1757142653695,-594.96,0.0001452,2]
[383849416,1757142653705,-480.0,0.0001452,2]
[383849418,1757142653714,-632.05,0.0001452,2]
[383849420,1757142653723,-1910.64,0.0001452,2]
[383849422,1757142653732,-480.0,0.0001452,2]
[383849424,1757142653741,-480.0,0.0001452,2]
[383849426,1757142653750,-480.0,0.0001452,2]
[383849428,1757142653759,-698.68,0.0001452,2]
[383849430,1757142653769,-480.0,0.0001452,2]
[383849432,1757142653778,-2487.1,0.0001452,2]
[383849433,1757142653787,-1264.94,0.0001452,2]
[383849436,1757142653797,-480.0,0.0001452,2]
[383849437,1757142653807,-806.18,0.0001452,2]
[383849440,1757142653816,-480.0,0.0001452,2]
[383849441,1757142653826,-377.94526038,0.0001452,2]
[383849443,1757142653835,-1046.26,0.0001452,2]
[383849445,1757142653844,-785.41,0.0001452,2]
[383849447,1757142653854,-1818.14,0.0001452,2]
[383849449,1757142653863,-702.79,0.0001452,2]
[383849451,1757142653872,-480.0,0.0001452,2]
[383849453,1757142653881,-1645.87,0.0001452,2]
[383849455,1757142653891,-480.0,0.0001452,2]
[383849457,1757142653902,-480.0,0.0001452,2]
[383849459,1757142653911,-480.0,0.0001452,2]
[383849461,1757142653921,-480.0,0.0001452,2]
[383849463,1757142653931,-3235.57,0.0001452,2]
[383849465,1757142653940,-7057.39,0.0001452,2]
[383849467,1757142653950,-480.0,0.0001452,2]
[383849469,1757142653959,-613.06,0.0001452,2]
[383849471,1757142653968,-929.17,0.0001452,2]
[383849473,1757142653978,-674.92,0.0001452,2]
[383849475,1757142653987,-480.0,0.0001452,2]
[383849477,1757142653996,-480.0,0.0001452,2]
[383849479,1757142654006,-480.0,0.0001452,2]
[383849481,1757142654015,-1000.0,0.00014521,2]
[383849483,1757142654024,-1000.0,0.00014521,2]
[383849485,1757142654034,-1001.77652397,0.00014521,2]
[383849487,1757142654045,-1000.0,0.00014521,2]
[383849489,1757142654054,-500.64786122,0.00014521,2]
[383849491,1757142654064,-502.2095997,0.00014521,2]
[383849493,1757142654074,-1000.0,0.00014521,2]
[383849495,1757142654083,-1000.0,0.00014521,2]
[383849497,1757142654093,-1000.0,0.00014521,2]
[383849499,1757142654102,-1000.0,0.00014521,2]
[383849501,1757142654110,-363.66498283,0.00014521,2]
[383849503,1757142654120,-1000.0,0.00014521,2]
[383849505,1757142654129,-1000.0,0.00014521,2]
[383849507,1757142654139,-1000.0,0.00014521,2]
[383849509,1757142654149,-1078.81561959,0.00014521,2]
[383849511,1757142654158,-1000.0,0.00014521,2]
[383849513,1757142654167,-1000.0,0.00014521,2]
[383849515,1757142654177,-1000.0,0.00014521,2]
[383849517,1757142654186,-1000.0,0.00014521,2]
[383849519,1757142654196,-500.67600698,0.00014521,2]
[383849521,1757142654207,-431.0413852,0.00014521,2]
[383849523,1757142654216,-295.2623739,0.00014521,2]
[383849525,1757142654225,-583.2030344,0.00014521,2]
[383849527,1757142654234,-5888.0,0.00014528,2]
[383849529,1757142654244,-447.0,0.00014551,2]
[383849531,1757142654253,-420.0,0.00014551,2]
[383849533,1757142654263,-389.0,0.00014551,2]
[383849535,1757142654272,-1200.0,0.00014599,2]
[383849537,1757142654281,-215.0,0.00014664,2]
[383849539,1757142654291,-652.0,0.00014664,2]
[383849541,1757142654300,-174.0,0.00014693,2]
[383849543,1757142654309,-213.07115165,0.00014693,2]
[383849545,1757142654319,-187.78006525,0.00014755,2]
[383849547,1757142654328,-500.0,0.00014773,2]
[383849549,1757142654337,-500.0,0.00014773,2]
[383849551,1757142654346,-500.0,0.00014773,2]
[383849553,1757142654355,-500.0,0.00014773,2]
[383849555,1757142654365,-500.0,0.00014773,2]
[383849557,1757142654374,-500.0,0.00014773,2]
[383849559,1757142654383,-501.06146603,0.00014773,2]
[383849561,1757142654392,-500.0,0.00014773,2]
[383849563,1757142654402,-500.48255043,0.00014773,2]
[383849565,1757142654411,-500.0,0.00014773,2]
[383849567,1757142654420,-500.0,0.00014773,2]
[383849569,1757142654430,-500.0,0.00014773,2]
[383849571,1757142654439,-541094.0988357,0.0001478,2]
[383849573,1757142654449,-480.0,0.00014794,2]
[383849575,1757142654459,-493.08521497,0.00014794,2]
[383849577,1757142654468,-480.0,0.00014794,2]
[383849579,1757142654481,-480.0,0.00014794,2]
[383849581,1757142654490,-519.17,0.00014794,2]
[383849582,1757142654499,-480.0,0.00014794,2]
[383849585,1757142654508,-480.0,0.00014794,2]
[383849586,1757142654518,-480.0,0.00014794,2]
[383849589,1757142654527,-480.0,0.00014794,2]
[383849591,1757142654537,-895.01,0.00014794,2]
[383849593,1757142654547,-625.04523384,0.00014794,2]
[383849595,1757142654557,-839.71,0.00014794,2]
[383849597,1757142654566,-480.0,0.00014794,2]
[383849599,1757142654576,-480.0,0.00014794,2]
[383849600,1757142654586,-480.0,0.00014794,2]
[383849603,1757142654595,-520.68,0.00014794,2]
[383849604,1757142654604,-337.99864246,0.00014794,2]
[383849606,1757142654614,-542.78082456,0.00014794,2]
[383849608,1757142654623,-480.0,0.00014794,2]
[383849610,1757142654636,-1342.59,0.00014794,2]
[383849613,1757142654646,-480.0,0.00014794,2]
[383849615,1757142654655,-441.53,0.00014794,2]
[383849616,1757142654666,-539.71102501,0.00014794,2]
[383849619,1757142654676,-752.74,0.00014794,2]
[383849621,1757142654686,-480.0,0.00014794,2]
[383849623,1757142654695,-304.96891556,0.00014794,2]
[383849624,1757142654704,-638.26,0.00014794,2]
[383849626,1757142654714,-671.24,0.00014794,2]
[383849628,1757142654724,-357.19025868,0.00014794,2]
[383849631,1757142654733,-480.0,0.00014794,2]
[383849633,1757142654743,-598.24,0.00014794,2]
[383849635,1757142654754,-480.0,0.00014794,2]
[383849637,1757142654764,-480.0,0.00014794,2]
[383849639,1757142654773,-762.76,0.00014794,2]
[383849641,1757142654784,-480.0,0.00014794,2]
[383849643,1757142654793,-480.0,0.00014794,2]
[383849645,1757142654803,-982.6,0.00014794,2]
[383849647,1757142654812,-464.46519318,0.00014794,2]
[383849649,1757142654822,-567.57,0.00014794,2]
[383849651,1757142654831,-480.0,0.00014794,2]
[383849661,1757142654841,-480.0,0.00014794,2]
[383849664,1757142654935,-590.92,0.00014794,2]
[383849666,1757142654944,-480.0,0.00014794,2]
[383849667,1757142654953,-480.0,0.00014794,2]
[383849670,1757142654963,-480.0,0.00014794,2]
[383849672,1757142654972,-480.0,0.00014794,2]
[383849674,1757142654982,-912.66,0.00014794,2]
[383849676,1757142654991,-434.46688294,0.00014794,2]
[383849678,1757142655000,-480.0,0.00014794,2]
[383849680,1757142655009,-476.70531131,0.00014794,2]
[383849682,1757142655019,-480.0,0.00014794,2]
[383849683,1757142655028,-480.0,0.00014794,2]
[383849686,1757142655039,-557.77,0.00014794,2]
[383849688,1757142655048,-480.0,0.00014794,2]
[383849690,1757142655058,-716.75,0.00014794,2]
[383849692,1757142655068,-480.0,0.00014794,2]
[383849694,1757142655077,-715.02,0.00014794,2]
[383849696,1757142655087,-480.0,0.00014794,2]
[383849698,1757142655096,-480.0,0.00014794,2]
[383849700,1757142655108,-822.2,0.00014794,2]
[383849702,1757142655117,-480.0,0.00014794,2]
[383849704,1757142655126,-557.01,0.00014794,2]
[383849706,1757142655135,-939.44,0.00014794,2]
[383849708,1757142655145,-4732.3,0.00014794,2]
[383849710,1757142655154,-480.0,0.00014794,2]
[383849712,1757142655163,-2481.31,0.00014794,2]
[383849714,1757142655173,-893.07,0.00014794,2]
[383849716,1757142655183,-480.0,0.00014794,2]
[383849718,1757142655192,-13187.23354417,0.00014794,2]
[383849763,1757142655777,-156.603064,0.00013698,2]
[383849765,1757142655787,-115.37393351,0.00013698,2]
[383849768,1757142655805,-41.22913049,0.00013698,2]
[383849770,1757142655814,-558.45053198,0.00013698,2]
[383849772,1757142655825,-558.45053198,0.00013698,2]
[383849774,1757142655834,-151.0,0.00013699,2]
[383849776,1757142655844,-151.0,0.00013699,2]
[383849778,1757142655853,-156.603064,0.00013971,2]
[383849780,1757142655862,-156.603064,0.00013972,2]
[383849782,1757142655871,-151.0,0.00013972,2]
[383849784,1757142655881,-156.603064,0.0001399,2]
[383849786,1757142655890,-153.086999,0.0001399,2]
[383849788,1757142655899,-156.603072,0.0001399,2]
[383849790,1757142655910,-5738.51645583,0.00014794,2]
[383849792,1757142655920,-480.0,0.00014794,2]
[383849794,1757142655929,-290.97292033,0.00014794,2]
[383849796,1757142655938,-2154.88,0.00014794,2]
[383849798,1757142655948,-2781.26,0.00014794,2]
[383849800,1757142655957,-480.0,0.00014794,2]
[383849802,1757142655967,-480.0,0.00014794,2]
[383849804,1757142655976,-769.96,0.00014794,2]
[383849806,1757142655986,-2083.88,0.00014794,2]
[383849808,1757142655995,-480.0,0.00014794,2]
[383849810,1757142656004,-480.0,0.00014794,2]
[383849812,1757142656014,-174.15237544,0.00014794,2]
[383849814,1757142656023,-480.0,0.00014794,2]
[383849816,1757142656031,-2117.21,0.00014794,2]
[383849818,1757142656041,-480.0,0.00014794,2]
[383849820,1757142656050,-480.0,0.00014794,2]
[383849822,1757142656059,-480.0,0.00014794,2]
[383849824,1757142656069,-585.4,0.00014794,2]
[383849826,1757142656079,-480.0,0.00014794,2]
[383849828,1757142656088,-1521.68,0.00014794,2]
[383849830,1757142656097,-480.0,0.00014794,2]
[383849832,1757142656108,-480.0,0.00014794,2]
[383849834,1757142656118,-1281.53,0.00014794,2]
[383849836,1757142656127,-510.35495562,0.00014794,2]
[383849838,1757142656137,-480.0,0.00014794,2]
[383849840,1757142656147,-480.0,0.00014794,2]
[383849842,1757142656157,-647.27,0.00014794,2]
[383849844,1757142656166,-480.0,0.00014794,2]
[383849845,1757142656175,-2313.46,0.00014794,2]
[383849847,1757142656184,-804.65,0.00014794,2]
[383849848,1757142656193,-480.0,0.00014794,2]
[383849850,1757142656204,-2183.52,0.00014794,2]
[383849852,1757142656213,-480.0,0.00014794,2]
[383849854,1757142656223,-1035.15,0.00014794,2]
[383849856,1757142656232,-10292.41,0.00014794,2]
[383849858,1757142656242,-594.96,0.00014794,2]
[383849860,1757142656251,-480.0,0.00014794,2]
[383849862,1757142656260,-632.05,0.00014794,2]
[383849864,1757142656269,-1910.64,0.00014794,2]
[383849866,1757142656279,-480.0,0.00014794,2]
[383849868,1757142656289,-480.0,0.00014794,2]
[383849870,1757142656300,-480.0,0.00014794,2]
[383849872,1757142656310,-698.68,0.00014794,2]
[383849874,1757142656319,-480.0,0.00014794,2]
[383849876,1757142656328,-2487.1,0.00014794,2]
[383849878,1757142656338,-1264.94,0.00014794,2]
[383849880,1757142656347,-480.0,0.00014794,2]
[383849882,1757142656357,-806.18,0.00014794,2]
[383849884,1757142656368,-486.04974622,0.00014794,2]
[383849886,1757142656378,-1046.26,0.00014794,2]
[383849888,1757142656387,-785.41,0.00014794,2]
[383849898,1757142656483,-1818.14,0.00014794,2]
[383849900,1757142656495,-702.79,0.00014794,2]
[383849902,1757142656505,-480.0,0.00014794,2]
[383849904,1757142656515,-1645.87,0.00014794,2]
[383849906,1757142656524,-480.0,0.00014794,2]
[383849908,1757142656534,-480.0,0.00014794,2]
[383849910,1757142656543,-470.85306302,0.00014794,2]
[383849912,1757142656553,-480.0,0.00014794,2]
[383849914,1757142656563,-3235.57,0.00014794,2]
[383849916,1757142656574,-7057.39,0.00014794,2]
[383849918,1757142656583,-480.0,0.00014794,2]
[383849920,1757142656594,-613.06,0.00014794,2]
[383849922,1757142656603,-929.17,0.00014794,2]
[383849924,1757142656613,-674.92,0.00014794,2]
[383849926,1757142656622,-213.83689512,0.00014794,2]
[383849928,1757142656632,-480.0,0.00014794,2]
[383849930,1757142656642,-480.0,0.00014794,2]
[383849932,1757142656652,-1500.0,0.00014795,2]
[383849934,1757142656661,-1501.60100574,0.00014795,2]
[383849936,1757142656671,-5888.0,0.00014798,2]
[383849938,1757142656680,-174.97010853,0.000149,2]
[383849940,1757142656690,-504.8064514,0.00014916,2]
[383849941,1757142656700,-652.0,0.00014938,2]
[383849944,1757142656712,-10704.06314759,0.00015,2]
[383849946,1757142656722,-160.0,0.00015,2]
[383849948,1757142656731,-5888.0,0.0001503,2]
[383849949,1757142656740,-574.45478107,0.00015068,2]
[383849951,1757142656750,-480.0,0.00015068,2]
[383849954,1757142656760,-480.0,0.00015068,2]
[383849956,1757142656769,-519.17,0.00015068,2]
[383849958,1757142656779,-500.65964256,0.00015068,2]
[383849960,1757142656788,-480.0,0.00015068,2]
[383849962,1757142656797,-480.0,0.00015068,2]
[383849964,1757142656807,-480.0,0.00015068,2]
[383849966,1757142656816,-895.01,0.00015068,2]
[383849967,1757142656825,-839.71,0.00015068,2]
[383849969,1757142656835,-480.0,0.00015068,2]
[383849971,1757142656844,-480.0,0.00015068,2]
[383849973,1757142656854,-480.0,0.00015068,2]
[383849975,1757142656863,-520.68,0.00015068,2]
[383849977,1757142656873,-480.0,0.00015068,2]
[383849980,1757142656883,-1342.59,0.00015068,2]
[383849981,1757142656892,-480.0,0.00015068,2]
[383849983,1757142656902,-752.74,0.00015068,2]
[383849986,1757142656913,-480.0,0.00015068,2]
[383849987,1757142656923,-638.26,0.00015068,2]
[383849990,1757142656932,-671.24,0.00015068,2]
[383849991,1757142656942,-624.63256648,0.00015068,2]
[383849993,1757142656951,-598.24,0.00015068,2]
[383849995,1757142656960,-480.0,0.00015068,2]
[383849997,1757142656970,-194.16379098,0.00015068,2]
[383849999,1757142656979,-762.76,0.00015068,2]
[383850001,1757142656988,-480.0,0.00015068,2]
[383850003,1757142656997,-982.6,0.00015068,2]
[383850005,1757142657006,-567.57,0.00015068,2]
[383850007,1757142657015,-480.0,0.00015068,2]
[383850009,1757142657024,-480.0,0.00015068,2]
[383850011,1757142657033,-590.92,0.00015068,2]
[383850013,1757142657042,-474.89532438,0.00015068,2]
[383850015,1757142657051,-480.0,0.00015068,2]
[383850017,1757142657060,-480.0,0.00015068,2]
[383850019,1757142657069,-480.0,0.00015068,2]
[383850021,1757142657078,-912.66,0.00015068,2]
[383850023,1757142657088,-480.0,0.00015068,2]
[383850025,1757142657099,-314.89942521,0.00015068,2]
[383850027,1757142657108,-480.0,0.00015068,2]
[383850029,1757142657117,-557.77,0.00015068,2]
[383850031,1757142657126,-480.0,0.00015068,2]
[383850033,1757142657135,-716.75,0.00015068,2]
[383850035,1757142657145,-715.02,0.00015068,2]
[383850037,1757142657154,-480.0,0.00015068,2]
[383850039,1757142657163,-480.0,0.00015068,2]
[383850041,1757142657173,-480.0,0.00015068,2]
[383850043,1757142657182,-480.0,0.00015068,2]
[383850045,1757142657192,-557.01,0.00015068,2]
[383850047,1757142657202,-939.44,0.00015068,2]
[383850049,1757142657211,-4732.3,0.00015068,2]
[383850051,1757142657220,-480.0,0.00015068,2]